[Event "African Games-chT 2019"]
[Site "Casablanca"]
[Date "2019.08.25"]
[Round "8.33"]
[White "Amba, Oyon Marius Claude"]
[Black "Kourakoumba, Florent"]
[Result "1-0"]
[ECO "C00"]
[WhiteElo "1911"]
[BlackElo "1677"]
[Annotator "NA"]
[PlyCount "51"]
[EventDate "2019.08.24"]
[EventType "team-tourn"]
[EventCountry "MAR"]
[SourceTitle "playchess.com"]
[Source "ChessBase"]
[SourceQuality "1"]
[WhiteTeam "CMR"]
[BlackTeam "CAF"]
[TimeControl "900+10"]

1. e4 {[%emt 0:00:00]} e6 {[%emt 0:00:00]} 2. d4 {[%emt 0:00:00]} d6 {[%emt 0:00:00]} 3. Bd3 {[%emt 0:00:00]} Be7 {[%emt 0:00:00]} 4. Ne2 {[%emt 0:00:00]} Nf6 {[%emt 0:00:00]} 5. O-O {[%emt 0:00:05]} O-O {[%emt 0:00:03]} 6. Nd2 {[%emt 0:00:13]} Nfd7 {[%emt 0:00:02]} 7. f4 {[%emt 0:00:13]} f6 {[%emt 0:00:01]} 8. Nf3 {[%emt 0:00:11]} Nc6 {[%emt 0:00:03]} 9. Kh1 {[%emt 0:00:22]} e5 {[%emt 0:00:02]} 10. c3 {[%emt 0:00:04]} a6 {[%emt 0:00:04]} 11. Ng3 {[%emt 0:00:15]} Nb6 {[%emt 0:00:19]} 12. a4 {[%emt 0:00:10]} a5 {[%emt 0:00:05]} 13. Bb5 {[%emt 0:00:32]} Na7 {[%emt 0:00:24]} 14. fxe5 {[%emt 0:00:07]} fxe5 {[%emt 0:00:03]} 15. dxe5 {[%emt 0:00:03]} Bg4 {[%emt 0:00:11]} 16. exd6 {[%emt 0:00:20]} Bxd6 {[%emt 0:00:03]} 17. Bg5 {[%emt 0:01:07]} Bxf3 {[%emt 0:00:05]} 18. Qb3+ {[%emt 0:00:00]} Kh8 {[%emt 0:00:46]} 19. Bxd8 {[%emt 0:00:02]} Bxg2+ {[%emt 0:00:12]} 20. Kxg2 {[%emt 0:00:01]} Raxd8 {[%emt 0:00:03]} 21. Rxf8+ {[%emt 0:00:05]} Rxf8 {[%emt 0:00:01]} 22. Rf1 {[%emt 0:00:02]} Rg8 {[%emt 0:00:09]} 23. Nf5 {[%emt 0:00:06]} Be5 {[%emt 0:00:15]} 24. Ne7 {[%emt 0:00:11]} Rd8 {[%emt 0:00:19]} 25. Qf7 {[%emt 0:00:22]} c6 {[%emt 0:00:12]} 26. Qf8+ {[%emt 0:00:24]} 1-0

[Event "African Games-chT 2019"]
[Site "Casablanca"]
[Date "2019.08.25"]
[Round "8.34"]
[White "Koualet-Bebondi, Vianney Archeveq"]
[Black "Ebosse, Kingue Victor Patric"]
[Result "0-1"]
[ECO "B20"]
[WhiteElo "1679"]
[BlackElo "2055"]
[Annotator "NA"]
[PlyCount "68"]
[EventDate "2019.08.24"]
[EventType "team-tourn"]
[EventCountry "MAR"]
[SourceTitle "playchess.com"]
[Source "ChessBase"]
[SourceQuality "1"]
[WhiteTeam "CAF"]
[BlackTeam "CMR"]
[TimeControl "900+10"]

1. e4 {[%emt 0:00:00]} c5 {[%emt 0:00:00]} 2. d3 {[%emt 0:00:00]} d6 {[%emt 0:00:00]} 3. Nf3 {[%emt 0:00:00]} Nf6 {[%emt 0:00:00]} 4. Be2 {[%emt 0:00:00]} e6 {[%emt 0:00:13]} 5. O-O {[%emt 0:00:03]} Be7 {[%emt 0:00:01]} 6. e5 {[%emt 0:00:21]} dxe5 {[%emt 0:00:03]} 7. Nxe5 {[%emt 0:00:02]} O-O {[%emt 0:00:03]} 8. Bf4 {[%emt 0:00:17]} Qd4 {[%emt 0:00:19]} 9. Qc1 {[%emt 0:00:23]} Nd5 {[%emt 0:00:10]} 10. Bg3 {[%emt 0:00:09]} f6 {[%emt 0:00:42]} 11. c3 {[%emt 0:00:08]} Qa4 {[%emt 0:00:03]} 12. Nc4 {[%emt 0:00:19]} e5 {[%emt 0:00:34]} 13. Bf3 {[%emt 0:00:09]} Be6 {[%emt 0:00:11]} 14. b3 {[%emt 0:00:14]} Qd7 {[%emt 0:00:17]} 15. Be4 {[%emt 0:00:41]} Nc6 {[%emt 0:00:24]} 16. f4 {[%emt 0:00:35]} exf4 {[%emt 0:01:45]} 17. Bxf4 {[%emt 0:00:14]} b5 {[%emt 0:00:52]} 18. Ne3 {[%emt 0:00:22]} Nxf4 {[%emt 0:00:18]} 19. Rxf4 {[%emt 0:00:09]} f5 {[%emt 0:00:53]} 20. Bxc6 {[%emt 0:00:18]} Qxc6 {[%emt 0:00:01]} 21. Qe1 {[%emt 0:00:11]} Rae8 {[%emt 0:00:23]} 22. d4 {[%emt 0:03:35]} Bg5 {[%emt 0:00:43]} 23. Rf3 {[%emt 0:00:21]} f4 {[%emt 0:00:06]} 24. h4 {[%emt 0:02:14]} Bd8 {[%emt 0:00:40]} 25. Qf2 {[%emt 0:00:38]} fxe3 {[%emt 0:00:15]} 26. Rxf8+ {[%emt 0:00:06]} Rxf8 {[%emt 0:00:09]} 27. Qxe3 {[%emt 0:00:01]} Bxh4 {[%emt 0:00:08]} 28. Qe5 {[%emt 0:00:39]} cxd4 {[%emt 0:00:23]} 29. cxd4 {[%emt 0:00:13]} Qc1+ {[%emt 0:02:17]} 30. Kh2 {[%emt 0:00:33]} Qh6 {[%emt 0:00:05]} 31. g4 {[%emt 0:04:37]} Rf2+ {[%emt 0:02:01]} 32. Kh3 {[%emt 0:00:50]} Bg3+ {[%emt 0:00:39]} 33. Qh5 {[%emt 0:01:24]} Qxh5+ {[%emt 0:00:08]} 34. Kxg3 {[%emt 0:00:38]} Qh2# 0-1

[Event "African Games-chT 2019"]
[Site "Casablanca"]
[Date "2019.08.25"]
[Round "8.37"]
[White "Asante Debesai Zerabruk"]
[Black "Rita, Jeorciley"]
[Result "0-1"]
[ECO "C42"]
[WhiteElo "1712"]
[BlackElo "1920"]
[Annotator "NA"]
[PlyCount "110"]
[EventDate "2019.08.24"]
[EventType "team-tourn"]
[EventCountry "MAR"]
[SourceTitle "playchess.com"]
[Source "ChessBase"]
[SourceQuality "1"]
[WhiteTeam "Eritrea"]
[BlackTeam "STP"]
[WhiteTeamCountry "ERI"]
[TimeControl "900+10"]

1. e4 {[%emt 0:00:00]} e5 {[%emt 0:00:00]} 2. Nf3 {[%emt 0:00:00]} Nf6 {[%emt 0:00:00]} 3. Nc3 {[%emt 0:00:06]} Bb4 {[%emt 0:00:00]} 4. a3 {[%emt 0:00:07]} Ba5 {[%emt 0:00:00]} 5. Bc4 {[%emt 0:00:14]} O-O {[%emt 0:00:16]} 6. d3 {[%emt 0:00:09]} h6 {[%emt 0:00:19]} 7. O-O Nc6 {[%emt 0:00:07]} 8. b4 {[%emt 0:00:21]} Bb6 9. Nd5 {[%emt 0:00:07]} d6 {[%emt 0:00:15]} 10. h3 {[%emt 0:00:04]} Be6 {[%emt 0:00:20]} 11. c3 {[%emt 0:00:09]} Bxd5 {[%emt 0:00:19]} 12. Bxd5 {[%emt 0:00:06]} Nxd5 {[%emt 0:00:07]} 13. exd5 {[%emt 0:00:02]} Ne7 {[%emt 0:00:01]} 14. c4 {[%emt 0:00:26]} a5 {[%emt 0:00:01]} 15. Be3 {[%emt 0:00:05]} Bxe3 {[%emt 0:01:14]} 16. fxe3 Nf5 17. Qe1 {[%emt 0:00:41]} axb4 {[%emt 0:00:05]} 18. e4 {[%emt 0:00:01]} Ne7 {[%emt 0:00:16]} 19. axb4 {[%emt 0:00:04]} f5 {[%emt 0:00:26]} 20. Qh4 {[%emt 0:03:31]} Qd7 {[%emt 0:01:04]} 21. Qe1 {[%emt 0:02:27]} Ng6 {[%emt 0:00:11]} 22. Rxa8 Rxa8 23. exf5 {[%emt 0:00:53]} Qxf5 {[%emt 0:00:22]} 24. Nh4 {[%emt 0:00:04]} Qxd3 {[%emt 0:00:06]} 25. Nxg6 {[%emt 0:01:42]} Qxg6 {[%emt 0:00:02]} 26. Qf2 {[%emt 0:00:28]} e4 {[%emt 0:02:11]} 27. Qf4 {[%emt 0:01:52]} b6 {[%emt 0:00:21]} 28. Kh1 {[%emt 0:00:46]} Re8 {[%emt 0:00:58]} 29. c5 {[%emt 0:00:45]} bxc5 {[%emt 0:00:15]} 30. bxc5 {[%emt 0:00:02]} e3 {[%emt 0:00:03]} 31. cxd6 {[%emt 0:00:14]} cxd6 {[%emt 0:00:03]} 32. Re1 {[%emt 0:00:03]} e2 {[%emt 0:00:29]} 33. Kg1 {[%emt 0:01:20]} Re5 {[%emt 0:02:34]} 34. Qf3 {[%emt 0:01:23]} Qe4 {[%emt 0:00:29]} 35. Qxe4 {[%emt 0:00:44]} Rxe4 {[%emt 0:00:01]} 36. Kf2 {[%emt 0:00:00]} Kf7 {[%emt 0:00:02]} 37. Rxe2 {[%emt 0:00:12]} Rxe2+ {[%emt 0:00:02]} 38. Kxe2 {[%emt 0:00:01]} Kf6 {[%emt 0:00:00]} 39. Kd3 {[%emt 0:00:09]} Ke5 {[%emt 0:00:02]} 40. Kc4 {[%emt 0:00:01]} Ke4 {[%emt 0:00:10]} 41. h4 {[%emt 0:00:05]} h5 {[%emt 0:00:05]} 42. Kc3 {[%emt 0:01:14]} Kxd5 {[%emt 0:00:12]} 43. Kd3 {[%emt 0:00:01]} Ke5 {[%emt 0:00:01]} 44. Ke3 {[%emt 0:00:01]} d5 {[%emt 0:00:23]} 45. Kf3 {[%emt 0:00:03]} d4 {[%emt 0:00:13]} 46. g3 {[%emt 0:00:05]} g6 {[%emt 0:00:02]} 47. g4 {[%emt 0:01:08]} hxg4+ {[%emt 0:00:25]} 48. Kxg4 {[%emt 0:00:07]} Ke4 {[%emt 0:00:01]} 49. Kg5 {[%emt 0:00:02]} d3 {[%emt 0:00:01]} 50. Kxg6 {[%emt 0:00:03]} d2 {[%emt 0:00:01]} 51. h5 {[%emt 0:00:00]} d1=Q {[%emt 0:00:04]} 52. h6 {[%emt 0:00:02]} Qg4+ {[%emt 0:00:22]} 53. Kf7 {[%emt 0:00:01]} Qh5+ {[%emt 0:00:07]} 54. Kg7 {[%emt 0:00:00]} Qg5+ {[%emt 0:00:01]} 55. Kh7 {[%emt 0:00:07]} Ke5 0-1

[Event "African Games-chT 2019"]
[Site "Casablanca"]
[Date "2019.08.25"]
[Round "9.1"]
[White "Adly, Ahmed"]
[Black "Mwale, Joseph"]
[Result "1-0"]
[ECO "C24"]
[WhiteElo "2636"]
[BlackElo "2231"]
[Annotator "RC"]
[PlyCount "67"]
[EventDate "2019.08.24"]
[EventType "team-tourn"]
[EventCountry "MAR"]
[SourceTitle "playchess.com"]
[Source "ChessBase"]
[SourceQuality "1"]
[WhiteTeam "Egypt"]
[BlackTeam "MAW"]
[WhiteTeamCountry "EGY"]
[TimeControl "900+10"]

1. e4 {[%emt 0:00:00]} e5 {[%emt 0:00:00]} 2. Bc4 {[%emt 0:00:00]} Nf6 {[%emt 0:00:11]} 3. d3 {[%emt 0:00:03]} Nc6 {[%emt 0:00:06]} 4. Nc3 {[%emt 0:00:02]} Na5 {[%emt 0:00:03]} 5. Bb5 {[%emt 0:00:17]} a6 {[%emt 0:00:11]} 6. Ba4 {[%emt 0:00:01]} b5 {[%emt 0:00:01]} 7. Bb3 {[%emt 0:00:01]} Nxb3 {[%emt 0:00:02]} 8. axb3 {[%emt 0:00:01]} Bb4 {[%emt 0:00:02]} 9. Nf3 {[%emt 0:00:07]} d5 {[%emt 0:00:16]} 10. O-O {[%emt 0:00:18]} Bxc3 {[%emt 0:01:30]} 11. bxc3 {[%emt 0:00:02]} dxe4 {[%emt 0:00:01]} 12. Nxe5 {[%emt 0:00:04]} O-O {[%emt 0:00:02]} 13. d4 {[%emt 0:00:20]} Re8 {[%emt 0:00:25]} 14. f3 {[%emt 0:00:40]} Bb7 {[%emt 0:00:37]} 15. Bg5 {[%emt 0:01:17]} exf3 {[%emt 0:00:28]} 16. Nxf3 {[%emt 0:00:17]} Re6 {[%emt 0:01:18]} 17. c4 {[%emt 0:00:19]} bxc4 {[%emt 0:00:52]} 18. bxc4 {[%emt 0:00:02]} h6 {[%emt 0:00:06]} 19. Bh4 {[%emt 0:00:08]} Qe7 {[%emt 0:02:37]} 20. Ra5 {[%emt 0:00:51]} Rd8 {[%emt 0:00:29]} 21. Rf5 {[%emt 0:00:19]} Be4 {[%emt 0:00:38]} 22. Rf4 {[%emt 0:00:01]} g5 {[%emt 0:02:35]} 23. Nxg5 {[%emt 0:00:13]} hxg5 {[%emt 0:00:03]} 24. Bxg5 {[%emt 0:00:04]} Rdd6 {[%emt 0:00:06]} 25. c5 {[%emt 0:02:23]} Rc6 {[%emt 0:00:17]} 26. c4 {[%emt 0:00:07]} Kg7 {[%emt 0:01:22]} 27. Qe1 {[%emt 0:01:30]} Bg6 {[%emt 0:02:56]} 28. Bxf6+ {[%emt 0:00:19]} Qxf6 {[%emt 0:00:07]} 29. Rxf6 {[%emt 0:00:02]} Rxe1 {[%emt 0:00:02]} 30. Rxc6 {[%emt 0:00:04]} Re2 {[%emt 0:00:07]} 31. Rxc7 {[%emt 0:00:09]} a5 {[%emt 0:00:04]} 32. h3 {[%emt 0:00:12]} a4 {[%emt 0:00:07]} 33. Ra7 {[%emt 0:00:03]} Rd2 {[%emt 0:00:02]} 34. d5 {[%emt 0:00:06]} 1-0

[Event "African Games-chT 2019"]
[Site "Casablanca"]
[Date "2019.08.25"]
[Round "9.3"]
[White "Wafa, Shrook"]
[Black "Nkhoma, Desiderata"]
[Result "1-0"]
[ECO "C62"]
[WhiteElo "2183"]
[BlackElo "1481"]
[Annotator "NA"]
[PlyCount "49"]
[EventDate "2019.08.24"]
[EventType "team-tourn"]
[EventCountry "MAR"]
[SourceTitle "playchess.com"]
[Source "ChessBase"]
[SourceQuality "1"]
[WhiteTeam "Egypt"]
[BlackTeam "MAW"]
[WhiteTeamCountry "EGY"]
[TimeControl "900+10"]

1. e4 {[%emt 0:00:00]} e5 {[%emt 0:00:00]} 2. Nf3 {[%emt 0:00:00]} Nc6 {[%emt 0:00:00]} 3. Bb5 {[%emt 0:00:00]} d6 {[%emt 0:00:27]} 4. O-O {[%emt 0:00:12]} Be7 {[%emt 0:00:02]} 5. c3 {[%emt 0:00:03]} Nf6 {[%emt 0:00:07]} 6. Re1 {[%emt 0:00:04]} O-O {[%emt 0:00:05]} 7. h3 {[%emt 0:00:13]} Bd7 {[%emt 0:00:17]} 8. d4 {[%emt 0:00:09]} Nxd4 {[%emt 0:02:06]} 9. Nxd4 {[%emt 0:00:38]} exd4 {[%emt 0:00:31]} 10. Bxd7 {[%emt 0:00:09]} Qxd7 {[%emt 0:00:58]} 11. cxd4 {[%emt 0:00:09]} h6 {[%emt 0:00:26]} 12. Nc3 {[%emt 0:00:11]} Nh7 {[%emt 0:00:10]} 13. Qh5 {[%emt 0:01:21]} c6 {[%emt 0:01:13]} 14. Bf4 {[%emt 0:01:41]} Rae8 {[%emt 0:01:04]} 15. Rad1 {[%emt 0:01:01]} Bg5 {[%emt 0:00:53]} 16. Bg3 {[%emt 0:01:09]} g6 {[%emt 0:01:16]} 17. Qf3 {[%emt 0:00:27]} f5 {[%emt 0:01:51]} 18. Qd3 {[%emt 0:02:13]} fxe4 {[%emt 0:01:27]} 19. Nxe4 {[%emt 0:00:42]} Be7 {[%emt 0:02:05]} 20. Nxd6 {[%emt 0:00:32]} Kg7 {[%emt 0:02:23]} 21. Nxe8+ {[%emt 0:00:26]} Rxe8 {[%emt 0:00:22]} 22. Be5+ {[%emt 0:00:29]} Nf6 {[%emt 0:00:13]} 23. Re3 {[%emt 0:00:24]} Qe6 {[%emt 0:00:42]} 24. Rg3 {[%emt 0:00:38]} Qf5 {[%emt 0:00:07]} 25. Qxf5 1-0

[Event "African Games-chT 2019"]
[Site "Casablanca"]
[Date "2019.08.25"]
[Round "9.4"]
[White "Msukwa, Tupokiwe"]
[Black "Wafa, Shahenda"]
[Result "0-1"]
[ECO "A85"]
[WhiteElo "1289"]
[BlackElo "2139"]
[Annotator "NA"]
[PlyCount "44"]
[EventDate "2019.08.24"]
[EventType "team-tourn"]
[EventCountry "MAR"]
[SourceTitle "playchess.com"]
[Source "ChessBase"]
[SourceQuality "1"]
[WhiteTeam "MAW"]
[BlackTeam "Egypt"]
[BlackTeamCountry "EGY"]
[TimeControl "900+10"]

1. d4 {[%emt 0:00:00]} f5 {[%emt 0:00:00]} 2. c4 {[%emt 0:00:00]} Nf6 {[%emt 0:00:00]} 3. Nc3 {[%emt 0:00:10]} d6 {[%emt 0:00:00]} 4. Bf4 {[%emt 0:00:24]} g6 {[%emt 0:00:04]} 5. Nf3 {[%emt 0:00:07]} Bg7 {[%emt 0:00:03]} 6. h3 {[%emt 0:00:06]} c6 {[%emt 0:00:04]} 7. e3 {[%emt 0:00:25]} O-O {[%emt 0:00:08]} 8. Be2 {[%emt 0:00:49]} a5 {[%emt 0:00:23]} 9. O-O {[%emt 0:00:35]} Na6 {[%emt 0:01:10]} 10. a3 {[%emt 0:00:59]} Qe8 {[%emt 0:00:32]} 11. Rc1 {[%emt 0:01:44]} Nh5 {[%emt 0:00:19]} 12. Bh2 {[%emt 0:00:31]} e5 {[%emt 0:01:32]} 13. dxe5 {[%emt 0:03:06]} dxe5 {[%emt 0:00:02]} 14. Qc2 {[%emt 0:01:39]} Qe7 {[%emt 0:01:07]} 15. e4 {[%emt 0:01:29]} f4 {[%emt 0:00:30]} 16. Rfd1 {[%emt 0:01:09]} Nf6 {[%emt 0:02:01]} 17. Na4 {[%emt 0:01:06]} Nc5 {[%emt 0:01:15]} 18. Nxc5 {[%emt 0:00:43]} Qxc5 {[%emt 0:00:04]} 19. b4 {[%emt 0:00:59]} axb4 {[%emt 0:00:11]} 20. axb4 {[%emt 0:00:03]} Qe7 {[%emt 0:00:13]} 21. c5 {[%emt 0:00:45]} h6 {[%emt 0:01:28]} 22. Bc4+ {[%emt 0:00:31]} Kh7 {[%emt 0:00:05]} 0-1

[Event "African Games-chT 2019"]
[Site "Casablanca"]
[Date "2019.08.25"]
[Round "9.5"]
[White "Bellahcene, Bilel"]
[Black "Mesfin, Leykun"]
[Result "1-0"]
[ECO "B99"]
[WhiteElo "2550"]
[BlackElo "2151"]
[Annotator "ChessBase"]
[PlyCount "79"]
[EventDate "2019.08.24"]
[EventType "team-tourn"]
[EventCountry "MAR"]
[SourceTitle "playchess.com"]
[Source "ChessBase"]
[SourceQuality "1"]
[WhiteTeam "Algeria"]
[BlackTeam "Ethiopia"]
[WhiteTeamCountry "ALG"]
[BlackTeamCountry "ETH"]
[TimeControl "900+10"]

1. e4 {[%emt 0:00:00]} c5 {[%emt 0:00:13]} 2. Nf3 {[%emt 0:00:00]} d6 {[%emt 0:00:01]} 3. d4 {[%emt 0:00:01]} cxd4 4. Nxd4 Nf6 {[%emt 0:00:04]} 5. Nc3 {[%emt 0:00:01]} a6 {[%emt 0:00:01]} 6. Bg5 {[%emt 0:00:10]} e6 {[%emt 0:00:20]} 7. f4 {[%emt 0:00:06]} Be7 {[%emt 0:00:41]} 8. Qf3 {[%emt 0:00:01]} Nbd7 {[%emt 0:01:23]} 9. O-O-O {[%emt 0:00:03]} Qc7 {[%emt 0:00:09]} 10. g4 {[%emt 0:00:01]} b5 {[%emt 0:00:30]} 11. Bxf6 {[%emt 0:00:11]} Nxf6 {[%emt 0:00:43]} 12. g5 {[%emt 0:00:05]} Nd7 {[%emt 0:00:29]} 13. h4 {[%emt 0:00:11]} Bb7 {[%emt 0:00:03]} 14. a3 {[%emt 0:00:13]} Rc8 {[%emt 0:01:04]} 15. f5 {[%emt 0:00:13]} Ne5 {[%emt 0:00:13]} 16. Qg2 {[%emt 0:00:25]} exf5 {[%emt 0:00:14]} 17. Nxf5 {[%emt 0:00:01]} g6 {[%emt 0:01:29]} 18. Ne3 {[%emt 0:00:15]} Qc5 {[%emt 0:02:50]} 19. Ned5 {[%emt 0:00:03]} Bxd5 {[%emt 0:00:14]} 20. Nxd5 {[%emt 0:00:28]} a5 {[%emt 0:00:28]} 21. Kb1 {[%emt 0:00:05]} b4 {[%emt 0:00:14]} 22. a4 {[%emt 0:00:01]} Nc4 {[%emt 0:00:12]} 23. Bxc4 {[%emt 0:00:02]} Qxc4 {[%emt 0:00:03]} 24. Nb6 {[%emt 0:00:16]} Qc6 {[%emt 0:00:19]} 25. Nxc8 {[%emt 0:00:01]} Qxc8 {[%emt 0:00:01]} 26. h5 {[%emt 0:00:01]} Rf8 {[%emt 0:00:32]} 27. e5 {[%emt 0:00:04]} dxe5 {[%emt 0:00:32]} 28. Qd5 {[%emt 0:00:01]} Rg8 {[%emt 0:03:23]} 29. hxg6 {[%emt 0:00:03]} hxg6 {[%emt 0:00:09]} 30. Qxe5 {[%emt 0:00:04]} Kf8 {[%emt 0:00:32]} 31. Rh8 {[%emt 0:00:01]} b3 {[%emt 0:00:47]} 32. cxb3 {[%emt 0:00:14]} Qf5+ {[%emt 0:00:10]} 33. Qxf5 {[%emt 0:00:01]} gxf5 {[%emt 0:00:01]} 34. Rxg8+ {[%emt 0:00:01]} Kxg8 {[%emt 0:00:01]} 35. Rd5 {[%emt 0:00:02]} f4 {[%emt 0:00:09]} 36. Rxa5 {[%emt 0:00:02]} Kg7 {[%emt 0:00:07]} 37. Rf5 {[%emt 0:00:21]} Bd6 {[%emt 0:00:08]} 38. a5 {[%emt 0:00:00]} Bb8 {[%emt 0:00:08]} 39. a6 {[%emt 0:00:01]} Kg6 {[%emt 0:00:04]} 40. Rxf4 {[%emt 0:00:02]} 1-0

[Event "African Games-chT 2019"]
[Site "Casablanca"]
[Date "2019.08.25"]
[Round "9.6"]
[White "Gole, Habtamu Ashenafi"]
[Black "Arab, Adlane"]
[Result "0-1"]
[ECO "E00"]
[WhiteElo "2046"]
[BlackElo "2485"]
[Annotator "ChessBase"]
[PlyCount "92"]
[EventDate "2019.08.24"]
[EventType "team-tourn"]
[EventCountry "MAR"]
[SourceTitle "playchess.com"]
[Source "ChessBase"]
[SourceQuality "1"]
[WhiteTeam "Ethiopia"]
[BlackTeam "Algeria"]
[WhiteTeamCountry "ETH"]
[BlackTeamCountry "ALG"]
[TimeControl "900+10"]

1. d4 {[%emt 0:00:00]} Nf6 {[%emt 0:00:00]} 2. c4 {[%emt 0:00:00]} e6 {[%emt 0:00:00]} 3. a3 {[%emt 0:00:00]} c5 {[%emt 0:00:00]} 4. d5 {[%emt 0:00:04]} exd5 {[%emt 0:00:00]} 5. cxd5 {[%emt 0:00:02]} d6 {[%emt 0:00:01]} 6. Nc3 {[%emt 0:00:02]} g6 {[%emt 0:00:01]} 7. e4 {[%emt 0:00:03]} Bg7 {[%emt 0:00:02]} 8. Bd3 {[%emt 0:00:21]} O-O {[%emt 0:00:03]} 9. Nge2 {[%emt 0:00:11]} a6 {[%emt 0:00:02]} 10. a4 {[%emt 0:00:06]} Nbd7 {[%emt 0:00:05]} 11. O-O {[%emt 0:00:06]} Re8 {[%emt 0:00:08]} 12. Ng3 {[%emt 0:00:08]} Ne5 {[%emt 0:00:06]} 13. Bc2 {[%emt 0:00:04]} Rb8 {[%emt 0:00:16]} 14. h3 {[%emt 0:00:48]} b5 {[%emt 0:00:10]} 15. f4 {[%emt 0:00:08]} Ned7 {[%emt 0:00:02]} 16. axb5 {[%emt 0:00:28]} axb5 {[%emt 0:00:01]} 17. Qf3 {[%emt 0:01:20]} b4 {[%emt 0:01:07]} 18. Nd1 {[%emt 0:00:16]} Qb6 {[%emt 0:00:14]} 19. Kh1 {[%emt 0:00:33]} Ba6 {[%emt 0:00:04]} 20. Re1 {[%emt 0:00:19]} Nxd5 {[%emt 0:00:14]} 21. e5 {[%emt 0:00:37]} Bb7 {[%emt 0:00:27]} 22. Be4 {[%emt 0:00:19]} Nc7 {[%emt 0:00:07]} 23. Ne3 {[%emt 0:01:22]} Bxe4 {[%emt 0:00:36]} 24. Nxe4 {[%emt 0:00:02]} dxe5 {[%emt 0:00:33]} 25. Nc4 {[%emt 0:00:04]} Qe6 {[%emt 0:00:35]} 26. Ncd6 {[%emt 0:00:14]} Red8 {[%emt 0:00:12]} 27. f5 {[%emt 0:00:13]} gxf5 {[%emt 0:00:02]} 28. Nxf5 {[%emt 0:00:02]} Kh8 {[%emt 0:03:05]} 29. Ng5 {[%emt 0:01:37]} Qf6 {[%emt 0:00:08]} 30. Rf1 {[%emt 0:00:51]} Ne6 {[%emt 0:00:27]} 31. Nxh7 {[%emt 0:01:32]} Qg6 {[%emt 0:00:39]} 32. Ne7 {[%emt 0:01:55]} Qxh7 {[%emt 0:00:54]} 33. Qxf7 {[%emt 0:00:01]} Ndf8 {[%emt 0:00:07]} 34. Rf5 {[%emt 0:00:22]} Rd1+ {[%emt 0:00:31]} 35. Kh2 {[%emt 0:00:01]} Bh6 {[%emt 0:00:25]} 36. Bxh6 {[%emt 0:00:55]} Qxf7 {[%emt 0:00:02]} 37. Rxf7 {[%emt 0:00:03]} Rxa1 {[%emt 0:00:02]} 38. Nd5 {[%emt 0:01:45]} Kg8 {[%emt 0:01:00]} 39. Re7 {[%emt 0:00:13]} Rf1 {[%emt 0:00:06]} 40. Ra7 {[%emt 0:01:06]} Rf7 {[%emt 0:00:08]} 41. Ra5 {[%emt 0:01:09]} c4 {[%emt 0:00:03]} 42. Ne3 {[%emt 0:00:15]} c3 {[%emt 0:00:03]} 43. bxc3 {[%emt 0:00:04]} b3 {[%emt 0:00:01]} 44. Nc4 {[%emt 0:00:33]} b2 {[%emt 0:00:03]} 45. Nxb2 {[%emt 0:00:04]} Rxb2 {[%emt 0:00:02]} 46. Rxe5 {[%emt 0:00:01]} Rff2 {[%emt 0:00:05]} 0-1

[Event "African Games-chT 2019"]
[Site "Casablanca"]
[Date "2019.08.25"]
[Round "9.7"]
[White "Nassr, Lina"]
[Black "Haile, Lidet Abate"]
[Result "1-0"]
[ECO "D02"]
[WhiteElo "1938"]
[BlackElo "1593"]
[Annotator "NA"]
[PlyCount "49"]
[EventDate "2019.08.24"]
[EventType "team-tourn"]
[EventCountry "MAR"]
[SourceTitle "playchess.com"]
[Source "ChessBase"]
[SourceQuality "1"]
[WhiteTeam "Algeria"]
[BlackTeam "Ethiopia"]
[WhiteTeamCountry "ALG"]
[BlackTeamCountry "ETH"]
[TimeControl "900+10"]

1. d4 {[%emt 0:00:00]} d5 {[%emt 0:00:00]} 2. Nf3 {[%emt 0:00:00]} Bf5 {[%emt 0:00:00]} 3. e3 {[%emt 0:00:00]} h6 {[%emt 0:00:00]} 4. c4 {[%emt 0:00:05]} e6 {[%emt 0:00:12]} 5. Nc3 {[%emt 0:00:14]} Nf6 {[%emt 0:00:11]} 6. Be2 {[%emt 0:00:19]} Nbd7 {[%emt 0:00:22]} 7. cxd5 {[%emt 0:00:52]} exd5 {[%emt 0:00:25]} 8. Qb3 {[%emt 0:01:05]} Nb6 {[%emt 0:00:10]} 9. a4 {[%emt 0:01:21]} a5 {[%emt 0:01:07]} 10. O-O {[%emt 0:01:55]} Bb4 {[%emt 0:00:13]} 11. Ne5 {[%emt 0:01:42]} O-O {[%emt 0:00:36]} 12. Nd3 {[%emt 0:00:52]} Be7 {[%emt 0:01:38]} 13. Nc5 {[%emt 0:01:16]} Nbd7 {[%emt 0:06:24]} 14. Nxb7 {[%emt 0:03:22]} Qb8 {[%emt 0:00:42]} 15. Nxd5 {[%emt 0:00:51]} Nxd5 {[%emt 0:00:44]} 16. Qxd5 {[%emt 0:00:04]} Be6 {[%emt 0:00:13]} 17. Qb5 {[%emt 0:01:36]} Ra7 {[%emt 0:01:18]} 18. Nc5 {[%emt 0:00:56]} Qxb5 {[%emt 0:00:17]} 19. axb5 {[%emt 0:00:30]} Nxc5 {[%emt 0:00:02]} 20. dxc5 {[%emt 0:00:01]} Bxc5 {[%emt 0:00:01]} 21. Bd2 {[%emt 0:00:21]} Bb6 {[%emt 0:00:02]} 22. Rfc1 {[%emt 0:00:39]} Rd8 {[%emt 0:00:07]} 23. Bc3 {[%emt 0:00:13]} Bb3 {[%emt 0:02:01]} 24. Ra3 {[%emt 0:00:27]} Be6 {[%emt 0:00:32]} 25. Rca1 {[%emt 0:00:06]} 1-0

[Event "African Games-chT 2019"]
[Site "Casablanca"]
[Date "2019.08.25"]
[Round "9.8"]
[White "Eshete, Ruth Leykun"]
[Black "Latreche, Sabrina"]
[Result "0-1"]
[ECO "E00"]
[WhiteElo "1495"]
[BlackElo "2064"]
[Annotator "NA"]
[PlyCount "56"]
[EventDate "2019.08.24"]
[EventType "team-tourn"]
[EventCountry "MAR"]
[SourceTitle "playchess.com"]
[Source "ChessBase"]
[SourceQuality "1"]
[WhiteTeam "Ethiopia"]
[BlackTeam "Algeria"]
[WhiteTeamCountry "ETH"]
[BlackTeamCountry "ALG"]
[TimeControl "900+10"]

1. d4 {[%emt 0:00:00]} Nf6 {[%emt 0:00:00]} 2. c4 {[%emt 0:00:00]} e6 {[%emt 0:00:00]} 3. a3 {[%emt 0:00:05]} d5 {[%emt 0:00:00]} 4. Nc3 {[%emt 0:00:13]} c6 {[%emt 0:00:03]} 5. Bg5 {[%emt 0:00:23]} h6 {[%emt 0:00:22]} 6. Bh4 {[%emt 0:00:22]} g5 {[%emt 0:00:25]} 7. Bg3 {[%emt 0:00:10]} dxc4 {[%emt 0:00:07]} 8. e3 {[%emt 0:00:08]} b5 {[%emt 0:00:06]} 9. Qf3 {[%emt 0:01:28]} Nd5 {[%emt 0:00:21]} 10. Nge2 {[%emt 0:01:46]} Bg7 {[%emt 0:00:43]} 11. a4 {[%emt 0:00:57]} Qa5 {[%emt 0:01:54]} 12. Kd1 {[%emt 0:03:31]} O-O {[%emt 0:00:59]} 13. e4 {[%emt 0:01:25]} Nxc3+ {[%emt 0:00:36]} 14. Qxc3 {[%emt 0:00:44]} Qxc3 {[%emt 0:00:10]} 15. bxc3 {[%emt 0:00:24]} Nd7 {[%emt 0:00:42]} 16. e5 {[%emt 0:01:15]} Nb6 {[%emt 0:00:12]} 17. axb5 {[%emt 0:01:11]} cxb5 {[%emt 0:00:01]} 18. Kc2 {[%emt 0:00:18]} a5 {[%emt 0:00:40]} 19. f4 {[%emt 0:00:27]} f6 {[%emt 0:01:28]} 20. Bf2 {[%emt 0:01:05]} Nd5 {[%emt 0:00:18]} 21. g3 {[%emt 0:00:27]} fxe5 {[%emt 0:00:02]} 22. dxe5 {[%emt 0:00:16]} gxf4 {[%emt 0:00:01]} 23. gxf4 {[%emt 0:00:17]} Nxf4 {[%emt 0:00:34]} 24. Bc5 {[%emt 0:00:27]} Rf7 {[%emt 0:00:23]} 25. Bd4 {[%emt 0:00:24]} Bb7 {[%emt 0:01:18]} 26. Rg1 {[%emt 0:00:14]} Be4+ {[%emt 0:00:13]} 27. Kb2 {[%emt 0:00:12]} Nd3+ {[%emt 0:00:09]} 28. Kc2 {[%emt 0:01:07]} Kh7 {[%emt 0:01:13]} 0-1